lending/lending_fUSD_20241214
["ID","MTS","AMOUNT","RATE_DAILY","PERIOD"]
[345283460,1734137446631,-500.0,0.00021249,3]
[345283461,1734137446641,-1137.79,0.00021249,3]
[345283462,1734137446651,-1137.79,0.00021249,3]
[345283463,1734137446660,-500.0,0.00021249,3]
[345283464,1734137446670,-500.0,0.00021249,3]
[345283465,1734137446679,-500.0,0.00021249,3]
[345283466,1734137446689,-1137.79,0.00021249,3]
[345283467,1734137446699,-500.0,0.00021249,3]
[345283468,1734137446708,-1137.79,0.00021249,3]
[345283469,1734137446719,-500.0,0.00021249,3]
[345283470,1734137446728,-1137.79,0.00021249,3]
[345283471,1734137446738,-500.0,0.00021249,3]
[345283472,1734137446748,-1137.79,0.00021249,3]
[345283473,1734137446758,-500.0,0.00021249,3]
[345283474,1734137446767,-1137.79,0.00021249,3]
[345283475,1734137446777,-1137.79,0.00021249,3]
[345283476,1734137446787,-500.0,0.00021249,3]
[345283477,1734137446796,-1137.79,0.00021249,3]
[345283478,1734137446806,-500.0,0.00021249,3]
[345283479,1734137446816,-1137.79,0.00021249,3]
[345283480,1734137446827,-500.0,0.00021249,3]
[345283481,1734137446836,-1137.79,0.00021249,3]
[345283482,1734137446845,-500.0,0.00021249,3]
[345283483,1734137447008,-1137.79,0.00021249,3]
[345283484,1734137447018,-651.27,0.00021249,3]
[345283485,1734137447027,-500.0,0.00021249,3]
[345283486,1734137447037,-1137.79,0.00021249,3]
[345283487,1734137447046,-651.27,0.00021249,3]
[345283488,1734137447055,-500.0,0.00021249,3]
[345283489,1734137447064,-1137.79,0.00021249,3]
[345283490,1734137447073,-651.27,0.00021249,3]
[345283491,1734137447084,-500.0,0.00021249,3]
[345283492,1734137447094,-1137.96412491,0.00021249,3]
[345283493,1734137447103,-651.27,0.00021249,3]
[345283494,1734137447113,-500.0,0.00021249,3]
[345283495,1734137447123,-651.27,0.00021249,3]
[345283496,1734137447132,-170.66255787,0.00021249,3]
[345283497,1734137447142,-500.0,0.00021249,3]
[345283498,1734137447151,-651.27,0.00021249,3]
[345283499,1734137447161,-215.87,0.00021249,3]
[345283500,1734137447170,-651.27,0.00021249,3]
[345283501,1734137447180,-651.27,0.00021249,3]
[345283502,1734137447190,-651.27,0.00021249,3]
[345283503,1734137447199,-651.27,0.00021249,3]
[345283504,1734137447209,-651.27,0.00021249,3]
[345283505,1734137447219,-651.27,0.00021249,3]
[345283506,1734137447229,-1222.64,0.00021249,3]
[345283507,1734137447238,-651.27,0.00021249,3]
[345283508,1734137447247,-1222.64,0.00021249,3]
[345283509,1734137447257,-651.27,0.00021249,3]
[345283510,1734137447266,-1222.64,0.00021249,3]
[345283511,1734137447279,-651.27,0.00021249,3]
[345283512,1734137447289,-1222.64,0.00021249,3]
[345283513,1734137447299,-500.0,0.00021249,3]
[345283514,1734137447309,-1222.64,0.00021249,3]
[345283515,1734137447320,-500.0,0.00021249,3]
[345283516,1734137447331,-651.27,0.00021249,3]
[345283517,1734137447342,-1222.64,0.00021249,3]
[345283518,1734137447355,-500.0,0.00021249,3]
[345283519,1734137447365,-651.27,0.00021249,3]
[345283520,1734137447374,-1222.64,0.00021249,3]
[345283521,1734137447384,-500.0,0.00021249,3]
[345283522,1734137447393,-651.27,0.00021249,3]
[345283523,1734137447403,-1222.64,0.00021249,3]
[345283524,1734137447413,-651.34655887,0.00021249,3]
[345283525,1734137447422,-1222.64,0.00021249,3]
[345283526,1734137447432,-500.0,0.00021249,3]
[345283527,1734137447444,-1222.64,0.00021249,3]
[345283528,1734137447454,-500.0,0.00021249,3]
[345283529,1734137447463,-1222.64,0.00021249,3]
[345283530,1734137447474,-500.0,0.00021249,3]
[345283531,1734137447483,-1222.64,0.00021249,3]
[345283532,1734137447493,-151.54,0.00021249,3]
[345283533,1734137447503,-1222.64,0.00021249,3]
[345283534,1734137447512,-1222.64,0.00021249,3]
[345283535,1734137447522,-1222.64,0.00021249,3]
[345283536,1734137447531,-1222.64,0.00021249,3]
[345283537,1734137447541,-1222.64,0.00021249,3]
[345283538,1734137447550,-1222.64,0.00021249,3]
[345283539,1734137447559,-1222.64,0.00021249,3]
[345283540,1734137447568,-1222.64,0.00021249,3]
[345283541,1734137447578,-1222.84359712,0.00021249,3]
[345283542,1734137447591,-831.48,0.00021249,3]
[345283543,1734137447601,-831.48,0.00021249,3]
[345283544,1734137447610,-831.48,0.00021249,3]
[345283545,1734137447620,-831.48,0.00021249,3]
[345283546,1734137447629,-831.48,0.00021249,3]
[345283547,1734137447638,-831.48,0.00021249,3]
[345283548,1734137447648,-831.48,0.00021249,3]
[345283549,1734137447658,-831.48,0.00021249,3]
[345283550,1734137447667,-831.48,0.00021249,3]
[345283551,1734137447677,-831.48,0.00021249,3]
[345283552,1734137447686,-831.48,0.00021249,3]
[345283553,1734137447696,-831.48,0.00021249,3]
[345283554,1734137447705,-831.48,0.00021249,3]
[345283555,1734137447715,-831.48,0.00021249,3]
[345283556,1734137447725,-831.48,0.00021249,3]
[345283557,1734137447733,-831.48,0.00021249,3]
[345283558,1734137447742,-831.48,0.00021249,3]
[345283559,1734137447752,-831.48,0.00021249,3]
[345283560,1734137447762,-831.48,0.00021249,3]
[345283561,1734137447772,-831.48,0.00021249,3]
[345283562,1734137447782,-831.65726876,0.00021249,3]
[345283563,1734137447792,-500.0,0.00021249,3]
[345283564,1734137447802,-500.0,0.00021249,3]
[345283565,1734137447812,-500.0,0.00021249,3]
[345283566,1734137447821,-500.0,0.00021249,3]
[345283567,1734137447832,-500.0,0.00021249,3]
[345283568,1734137447842,-500.0,0.00021249,3]
[345283569,1734137447852,-500.0,0.00021249,3]
[345283570,1734137447861,-500.0,0.00021249,3]
[345283571,1734137447871,-500.0,0.00021249,3]
[345283572,1734137447880,-500.0,0.00021249,3]
[345283573,1734137447890,-500.0,0.00021249,3]
[345283574,1734137447899,-500.0,0.00021249,3]
[345283575,1734137447908,-500.0,0.00021249,3]
[345283576,1734137447919,-500.0,0.00021249,3]
[345283577,1734137447928,-304.42,0.00021249,3]
[345283578,1734137447938,-500.0,0.00021249,3]
[345283579,1734137447948,-500.0,0.00021249,3]
[345283580,1734137447957,-500.0,0.00021249,3]
[345283581,1734137447968,-500.0,0.00021249,3]
[345283582,1734137447977,-154.87,0.00021249,3]
[345283583,1734137447988,-500.0,0.00021249,3]
[345283584,1734137447997,-500.0,0.00021249,3]
[345283585,1734137448007,-500.0,0.00021249,3]
[345283586,1734137448017,-500.0,0.00021249,3]
[345283587,1734137448027,-500.0,0.00021249,3]
[345283588,1734137448037,-500.0,0.00021249,3]
[345283589,1734137448047,-500.0,0.00021249,3]
[345283590,1734137448056,-500.0,0.00021249,3]
[345283591,1734137448065,-500.0,0.00021249,3]
[345283592,1734137448075,-500.0,0.00021249,3]
[345283593,1734137448092,-500.0,0.00021249,3]
[345283594,1734137448103,-500.0,0.00021249,3]
[345283595,1734137448114,-500.0,0.00021249,3]
[345283596,1734137448124,-500.0,0.00021249,3]
[345283597,1734137448134,-500.0,0.00021249,3]
[345283598,1734137448144,-500.0,0.00021249,3]
[345283599,1734137448155,-500.0,0.00021249,3]
[345283600,1734137448164,-500.0,0.00021249,3]
[345283601,1734137448174,-500.0,0.00021249,3]
[345283602,1734137448183,-500.0,0.00021249,3]
[345283603,1734137448193,-500.0,0.00021249,3]
[345283604,1734137448203,-500.0,0.00021249,3]
[345283605,1734137448212,-634.37166005,0.00021249,3]
[345283606,1734137448223,-500.0,0.00021249,3]
[345283607,1734137448233,-500.0,0.00021249,3]
[345283608,1734137448244,-500.0,0.00021249,3]
[345283609,1734137448254,-500.0,0.00021249,3]
[345283610,1734137448263,-333.06,0.00021249,3]
[345283611,1734137448275,-2905.09646231,0.00021249,20]
[345283612,1734137448284,-692.0,0.0002125,2]
[345283613,1734137448294,-7867.02530316,0.0002125,2]
[345283614,1734137448304,-395151.06260465,0.0002125,4]
[345283615,1734137448314,-4844.42776359,0.0002125,2]
[345283616,1734137448324,-10166535.74168828,0.0002125,2]
[345283617,1734137448370,-500.0,0.00021095,3]
[345283618,1734137448379,-500.0,0.00021095,3]
[345283619,1734137448388,-500.0,0.00021171,3]
[345283620,1734137448398,-7892.563803,0.0002125,2]
[345283621,1734137448409,-59497.7829552,0.0002125,2]
[345283622,1734137448422,-3415.0,0.0002125,2]
[345283623,1734137448441,-264.339999,0.0002125,2]
[345283624,1734137452163,-500.0,0.00021095,3]
[345283625,1734137452174,-500.0,0.00021095,3]
[345283626,1734137452185,-7848283.18818572,0.0002125,2]
[345283627,1734137452196,-2326034.26477599,0.0002125,2]
[345283628,1734137452206,-1230163.08991496,0.0002125,2]
[345283629,1734137452215,-9636862.41239938,0.0002125,2]
[345283630,1734137452224,-2952.4283704,0.0002125,10]
[345283631,1734137452233,-500.0,0.0002125,2]
[345283632,1734137452242,-500.0,0.0002125,2]
[345283633,1734137452251,-503.823,0.0002125,2]
[345283634,1734137452260,-3056766.22104816,0.0002125,2]
[345283635,1734137452434,-500.0,0.00021095,3]
[345283636,1734137452444,-1918.10191,0.0002125,2]
[345283637,1734137452455,-303428.41109691,0.0002125,2]
[345283638,1734137452625,-1295.66911719,0.0002125,2]
[345283639,1734137452692,-64.66961764,0.0002125,2]
[345283640,1734137453230,-150.0,0.00020934,2]
[345283641,1734137453241,-235.61094,0.0002125,2]
[345283642,1734137453252,-334.33007211,0.0002125,2]
[345283982,1734138050649,161.04,0.00010137,2]
[345283985,1734138335164,-264.39,0.00017739,2]
[345283986,1734138335185,-250.0,0.00019674,2]
[345283987,1734138335210,-346.82,0.00019897,2]
[345283988,1734138335230,-346.82,0.00019902,2]
[345283989,1734138335250,-346.82,0.00019907,2]
[345283990,1734138335271,-346.82,0.00019912,2]
[345283991,1734138335290,-346.82,0.00019918,2]
[345283992,1734138335310,-200.0,0.00019919,2]
[345283993,1734138335331,-346.82,0.00019923,2]
[345283994,1734138335353,-250.0,0.00019927,2]
[345283995,1734138335374,-346.82,0.00019928,2]
[345283996,1734138335393,-150.99,0.00019928,2]
[345283997,1734138335413,-2448.56017845,0.00019928,2]
[345283998,1734138446110,-1000.0,0.0001966,2]
[345283999,1734138446130,-150.0,0.00019741,2]
[345284000,1734138446153,-450.0,0.00019927,2]
[345284001,1734138446173,-300.0,0.00019927,2]
[345284002,1734138446195,-3424.67102109,0.00019928,2]
[345284007,1734138631555,-24968.51880046,0.00019928,2]
[345284008,1734138631564,-402.99,0.00019928,2]
[345284009,1734138631573,-150.99,0.00019928,2]
[345284010,1734138631583,-1181.21,0.00019932,2]
[345284011,1734138631593,-346.82,0.00019933,2]
[345284012,1734138631602,-346.82,0.00019938,2]
[345284013,1734138631611,-346.82,0.00019944,2]
[345284014,1734138631620,-346.82,0.00019949,2]
[345284015,1734138631633,-346.82,0.00019954,2]
[345284016,1734138631642,-157.31,0.00019956,30]
[345284017,1734138631655,-346.82,0.00019959,2]
[345284018,1734138631664,-346.82,0.00019965,2]
[345284019,1734138631673,-346.82,0.0001997,2]
[345284020,1734138631682,-346.82,0.00019975,2]
[345284021,1734138631690,-346.82,0.0001998,2]
[345284022,1734138631699,-346.82,0.00019986,2]
[345284023,1734138631709,-346.82,0.00019991,2]
[345284024,1734138631718,-346.82,0.00019996,2]
[345284025,1734138631727,-150.0,0.0002,2]
[345284026,1734138631736,-150.0,0.0002,2]
[345284027,1734138631744,-150.0,0.0002,2]
[345284028,1734138631753,-7171.16959736,0.0002,2]
[345284029,1734138631761,-264.39,0.00020003,2]
[345284030,1734138631769,-248.59,0.00020017,2]
[345284031,1734138631777,-1002.5,0.00020069,2]
[345284032,1734138631785,-990.78,0.00020113,2]
[345284033,1734138631792,-168.3,0.00020116,2]
[345284034,1734138631800,-1002.29,0.0002017,2]
[345284035,1734138631809,-394.804,0.0002019,2]
[345284036,1734138631817,-1017.69,0.00020216,2]
[345284037,1734138631825,-983.59,0.00020284,2]
[345284038,1734138631833,-998.81,0.00020379,2]
[345284039,1734138631841,-554.7,0.000204,2]
[345284040,1734138631850,-999.05,0.00020423,2]
[345284041,1734138631859,-991.86,0.00020475,2]
[345284042,1734138631868,-991.18,0.00020536,2]
[345284043,1734138631881,-997.1,0.00020548,2]
[345284044,1734138631890,-158.107522,0.0002058,5]
[345284045,1734138631899,-1015.7,0.00020647,2]
[345284046,1734138631909,-1016.69,0.00020657,2]
[345284047,1734138631919,-984.2,0.0002067,2]
[345284048,1734138631928,-981.63,0.00020684,2]
[345284049,1734138631938,-1013.91,0.000207,2]
[345284050,1734138631947,-161.04,0.00020708,2]
[345284051,1734138631956,-985.55,0.0002072,2]
[345284052,1734138631966,-1001.0,0.00020742,2]
[345284053,1734138631975,-1019.85,0.00020767,2]
[345284054,1734138631984,-985.99,0.00020797,2]
[345284055,1734138631993,-746.0,0.000208,2]
[345284056,1734138632003,-1010.93,0.00020869,2]
[345284057,1734138632012,-15186.11683932,0.00020889,2]
[345284058,1734138632022,-89755.893873,0.00020893,2]
[345284059,1734138632031,-459.63900361,0.00020894,2]
[345284060,1734138632040,-3303.43406013,0.00020894,2]
[345284061,1734138632049,-3407.32383658,0.00020897,2]
[345284062,1734138632058,-4388.42522413,0.00020899,2]
[345284063,1734138632067,-201.27222553,0.00020899,2]
[345284064,1734138632076,-4388.42522413,0.000209,2]
[345284065,1734138632086,-3407.32383658,0.00020901,2]
[345284066,1734138632101,-3407.32383658,0.00020903,2]
[345284067,1734138632111,-4388.42522413,0.00020905,2]
[345284068,1734138632122,-3303.43406013,0.00020905,2]
[345284069,1734138632132,-3303.43406013,0.00020907,2]
[345284070,1734138632141,-3303.43406013,0.00020908,2]
[345284071,1734138632151,-459.63900361,0.00020914,2]
[345284072,1734138632160,-459.63900361,0.00020917,2]
[345284073,1734138632172,-201.27222553,0.00020917,2]
[345284074,1734138632183,-4388.42522413,0.00020918,2]
[345284075,1734138632193,-3407.32383658,0.00020919,2]
[345284076,1734138632202,-459.63900361,0.00020923,2]
[345284077,1734138632211,-41668.076419,0.00020924,2]
[345284078,1734138634971,-2385.81826389,0.00020548,7]
[345284079,1734138635034,-704.16805124,0.00020548,7]
[345284170,1734138637725,-2910.01368487,0.00020548,7]
[345284171,1734138637735,-48087.817454,0.00020924,2]
[345284172,1734138637745,-15186.11683932,0.00020924,2]
[345284173,1734138637754,-459.63900361,0.00020925,2]
[345284174,1734138637763,-15186.11683932,0.00020925,2]
[345284175,1734138637773,-201.27222553,0.00020928,2]
[345284176,1734138637781,-39946.33847926,0.00020928,2]
[345284177,1734138637793,-49809.55539374,0.00020928,2]
[345284178,1734138637803,-4388.42522413,0.00020928,2]
[345284179,1734138637812,-15186.11683932,0.00020929,2]
[345284180,1734138637822,-3407.32383658,0.0002093,2]
[345284181,1734138637831,-28878.57870623,0.00020932,2]
[345284182,1734138637845,-60877.31516677,0.00020932,2]
[345284183,1734138637854,-459.63900361,0.00020932,2]
[345284184,1734138637863,-89755.893873,0.00020933,2]
[345284185,1734138637872,-4388.42522413,0.00020933,2]
[345284186,1734138637886,-3303.43406013,0.00020937,2]
[345284187,1734138637900,-201.27222553,0.00020937,2]
[345284188,1734138637909,-15186.11683932,0.00020938,2]
[345284189,1734138637918,-201.27222553,0.00020938,2]
[345284190,1734138637927,-30165.60759397,0.0002094,2]
[345284191,1734138637943,-59590.28627903,0.0002094,2]
[345284192,1734138637952,-15186.11683932,0.00020941,2]
[345284193,1734138637962,-3303.43406013,0.00020942,2]
[345284195,1734138637971,-3407.32383658,0.00020943,2]
[345284196,1734138637980,-996.1,0.00020965,2]
[345284197,1734138637989,-487.01393314,0.0002098,2]
[345284198,1734138637998,-5000.0,0.00021,5]
[345284199,1734138638007,-1001.69,0.0002103,2]
[345284200,1734138638016,-1500.0,0.00021076,2]
[345284201,1734138638025,-269.87,0.00021095,7]
[345284202,1734138638035,-500.0,0.00021095,3]
[345284203,1734138638044,-300.81,0.00021095,3]
[345284204,1734138638053,-500.0,0.00021095,3]
[345284205,1734138638063,-500.0,0.00021095,3]
[345284206,1734138638072,-620.24,0.00021095,3]
[345284208,1734138638081,-500.0,0.00021095,3]
[345284210,1734138638090,-500.0,0.00021095,3]
[345284211,1734138638100,-500.0,0.00021095,3]
[345284212,1734138638109,-309.0156429,0.00021095,3]
[345284213,1734138638118,-500.0,0.00021095,3]
[345284214,1734138638131,-500.0,0.00021095,3]
[345284215,1734138638140,-500.0,0.00021095,3]
[345284216,1734138638149,-500.0,0.00021095,3]
[345284217,1734138638158,-500.0,0.00021095,3]
[345284218,1734138638167,-500.0,0.00021095,3]
[345284219,1734138638180,-500.0,0.00021095,3]
[345284220,1734138638190,-500.0,0.00021095,3]
[345284221,1734138638200,-221.27693952,0.00021095,3]
[345284222,1734138638209,-500.0,0.00021095,3]
[345284223,1734138638220,-500.0,0.00021095,3]
[345284224,1734138638230,-500.0,0.00021095,3]
[345284225,1734138638240,-993.31,0.00021095,2]
[345284226,1734138638251,-1380.546,0.00021098,2]
[345284227,1734138638259,-150.0,0.00021118,2]
[345284228,1734138638268,-1338.05667636,0.00021148,2]
[345284229,1734138638278,-1338.0566763,0.00021148,2]
[345284230,1734138638287,-1338.0566763,0.00021148,2]
[345284231,1734138638295,-1338.0566763,0.00021149,2]
[345284232,1734138638305,-1338.0566763,0.00021149,2]
[345284233,1734138638314,-1338.0566763,0.00021149,2]
[345284234,1734138638322,-1338.0566763,0.00021149,2]
[345284235,1734138638332,-1338.0566763,0.0002115,2]
[345284236,1734138638342,-1338.0566763,0.0002115,2]
[345284237,1734138638353,-1338.0566763,0.0002115,2]
[345284238,1734138638364,-150.0,0.0002115,2]
[345284239,1734138638373,-607.01,0.00021171,3]
[345284240,1734138638388,-355.26,0.00021171,3]
[345284241,1734138638397,-203.15,0.00021171,3]
[345284242,1734138638406,-150.0,0.000212,2]
[345284243,1734138638416,-5800.0,0.000212,2]
[345284244,1734138638425,-618233.166717,0.000212,2]
[345284245,1734138638434,-202.3,0.000212,2]
[345284246,1734138638443,-601.0,0.000212,9]
[345284247,1734138638452,-500.0,0.00021206,3]
[345284248,1734138638461,-500.0,0.00021206,3]
[345284249,1734138638470,-15000.0,0.0002124,2]
[345284250,1734138638480,-1000.0,0.00021247,2]
[345284251,1734138638490,-350.11141437,0.00021247,2]
[345284252,1734138638499,-986.86,0.00021248,2]
[345284253,1734138638508,-500.0,0.00021248,3]
[345284254,1734138638517,-500.0,0.00021248,3]
[345284255,1734138638527,-500.0,0.00021248,3]
[345284256,1734138638536,-500.0,0.00021248,3]
[345284257,1734138638546,-500.0,0.00021248,3]
[345284258,1734138638555,-500.0,0.00021248,3]
[345284259,1734138638564,-500.0,0.00021248,3]
[345284260,1734138638574,-500.0,0.00021248,3]
[345284261,1734138638583,-500.0,0.00021248,3]
[345284262,1734138638593,-500.0,0.00021248,3]
[345284263,1734138638602,-500.0,0.00021248,3]
[345284264,1734138638612,-500.0,0.00021248,3]
[345284265,1734138638621,-500.0,0.00021248,3]
[345284266,1734138638633,-613.82508587,0.00021248,3]
[345284267,1734138638642,-570.36,0.00021248,3]
[345284268,1734138638652,-838.49,0.00021248,3]
[345284269,1734138638661,-500.0,0.00021248,3]
[345284270,1734138638671,-500.0,0.00021248,3]
[345284271,1734138638681,-500.0,0.00021248,3]
[345284272,1734138638690,-353.4,0.00021248,3]
[345284273,1734138638699,-500.0,0.00021248,3]
[345284274,1734138638709,-500.0,0.00021248,3]
[345284275,1734138638718,-500.0,0.00021248,3]
[345284276,1734138638727,-443.67027404,0.00021248,3]
[345284277,1734138638737,-500.0,0.00021248,3]
[345284278,1734138638746,-489.23752244,0.00021248,3]
[345284279,1734138638755,-500.0,0.00021248,3]
[345284280,1734138638765,-500.79476353,0.00021248,3]
[345284281,1734138638774,-500.0,0.00021248,3]
[345284282,1734138638783,-500.0,0.00021248,3]
[345284283,1734138638792,-500.0,0.00021248,3]
[345284284,1734138638802,-194.8232009,0.00021248,3]
[345284285,1734138638811,-500.0,0.00021248,3]
[345284286,1734138638821,-486.33268107,0.00021248,3]
[345284287,1734138638831,-500.0,0.00021248,3]
[345284288,1734138638840,-500.0,0.00021248,3]
[345284289,1734138638849,-500.0,0.00021248,3]
[345284290,1734138638858,-500.0,0.00021248,3]
[345284291,1734138638868,-500.0,0.00021248,3]
[345284292,1734138638880,-500.0,0.00021248,3]
[345284293,1734138638889,-500.0,0.00021248,3]
[345284294,1734138638899,-500.0,0.00021248,3]
[345284295,1734138638909,-500.0,0.00021248,3]
[345284296,1734138638918,-500.0,0.00021248,3]
[345284297,1734138638928,-389.88971135,0.00021248,3]
[345284298,1734138638937,-500.0,0.00021248,3]
[345284299,1734138638946,-500.0,0.00021248,3]
[345284300,1734138638955,-500.0,0.00021248,3]
[345284301,1734138638964,-500.0,0.00021248,3]
[345284302,1734138638973,-500.0,0.00021248,3]
[345284303,1734138638983,-520.24,0.00021248,3]
[345284304,1734138638992,-380.93895122,0.00021248,3]
[345284305,1734138639001,-500.0,0.00021248,3]
[345284306,1734138639011,-500.0,0.00021248,3]
[345284307,1734138639020,-500.0,0.00021248,3]
[345284308,1734138639029,-500.0,0.00021248,3]
[345284309,1734138639039,-500.0,0.00021248,3]
[345284310,1734138639048,-500.0,0.00021248,3]
[345284311,1734138639057,-500.0,0.00021248,3]
[345284312,1734138639066,-170.24,0.00021248,3]
[345284313,1734138639076,-191.23,0.00021248,3]
[345284314,1734138639085,-500.0,0.00021248,3]
[345284315,1734138639094,-500.0,0.00021248,3]
[345284316,1734138639104,-500.0,0.00021248,3]
[345284317,1734138639114,-199.21091384,0.00021248,3]
[345284318,1734138639123,-285.33,0.00021248,3]
[345284319,1734138639135,-500.0,0.00021248,3]
[345284320,1734138639144,-736.64,0.00021248,3]
[345284321,1734138639153,-500.0,0.00021248,3]
[345284322,1734138639162,-500.0,0.00021248,3]
[345284323,1734138639174,-1110.78,0.00021248,3]
[345284324,1734138639183,-995.57,0.00021248,3]
[345284325,1734138639193,-500.0,0.00021248,3]
[345284326,1734138639202,-1069.81,0.00021248,3]
[345284327,1734138639211,-323.14410426,0.00021248,3]
[345284328,1734138639222,-293.08,0.00021248,3]
[345284329,1734138639232,-500.0,0.00021248,3]
[345284330,1734138639241,-727.55,0.00021248,3]
[345284331,1734138639251,-493.5,0.00021248,3]
[345284332,1734138639261,-251.78244372,0.00021248,3]
[345284333,1734138639270,-500.0,0.00021248,3]
[345284334,1734138639279,-500.0,0.00021248,3]
[345284335,1734138639288,-500.0,0.00021248,3]
[345284336,1734138639297,-500.0,0.00021248,3]
[345284337,1734138639306,-500.0,0.00021248,3]
[345284339,1734138639316,-500.0,0.00021248,3]
[345284340,1734138639325,-500.0,0.00021248,3]
[345284341,1734138639334,-500.0,0.00021248,3]
[345284342,1734138639343,-500.26,0.00021248,3]
[345284343,1734138639352,-500.0,0.00021248,3]
[345284344,1734138639361,-500.0,0.00021248,3]
[345284345,1734138639370,-500.0,0.00021248,3]
[345284346,1734138639384,-500.0,0.00021248,3]
[345284347,1734138639393,-287.38,0.00021248,3]
[345284348,1734138639402,-542.38,0.00021248,3]
[345284350,1734138639411,-500.0,0.00021248,3]
[345284351,1734138639420,-500.0,0.00021248,3]
[345284352,1734138639429,-7500.0,0.00021248,2]
[345284353,1734138639438,-500.0,0.00021248,3]
[345284354,1734138639447,-500.0,0.00021248,3]
[345284355,1734138639457,-500.0,0.00021248,3]
[345284356,1734138639467,-500.0,0.00021248,3]
[345284357,1734138639475,-500.0,0.00021248,3]
[345284358,1734138639485,-500.0,0.00021248,3]
[345284359,1734138639494,-1158.97,0.00021248,3]
[345284360,1734138639503,-500.0,0.00021249,3]
[345284361,1734138639512,-500.0,0.00021249,3]
[345284362,1734138639522,-500.0,0.00021249,3]
[345284363,1734138639532,-500.0,0.00021249,3]
[345284364,1734138639541,-500.0,0.00021249,3]
[345284365,1734138639550,-303.0,0.00021249,3]
[345284366,1734138639559,-500.0,0.00021249,3]
[345284367,1734138639569,-500.0,0.00021249,3]
[345284368,1734138639578,-500.0,0.00021249,3]
[345284369,1734138639588,-321.95,0.00021249,3]
[345284370,1734138639597,-500.0,0.00021249,3]
[345284371,1734138639607,-500.0,0.00021249,3]
[345284372,1734138639616,-271.8911984,0.00021249,3]
[345284373,1734138639629,-500.0,0.00021249,3]
[345284374,1734138639639,-500.0,0.00021249,3]
[345284375,1734138639648,-500.0,0.00021249,3]
[345284376,1734138639657,-500.0,0.00021249,3]
[345284377,1734138639667,-500.0,0.00021249,3]
[345284378,1734138639676,-500.0,0.00021249,3]
[345284379,1734138639825,-500.0,0.00021249,3]
[345284380,1734138639835,-500.0,0.00021249,3]
[345284381,1734138639844,-500.0,0.00021249,3]
[345284382,1734138639855,-500.0,0.00021249,3]
[345284383,1734138639864,-500.0,0.00021249,3]
[345284384,1734138639874,-500.0,0.00021249,3]
[345284385,1734138639886,-500.0,0.00021249,3]
[345284386,1734138639895,-500.0,0.00021249,3]
[345284387,1734138639905,-500.0,0.00021249,3]
[345284388,1734138639914,-500.0,0.00021249,3]
[345284389,1734138639923,-500.0,0.00021249,3]
[345284390,1734138639933,-500.0,0.00021249,3]
[345284392,1734138639942,-500.0,0.00021249,3]
[345284393,1734138639951,-500.0,0.00021249,3]
[345284394,1734138639962,-500.0,0.00021249,3]
[345284395,1734138639971,-500.0,0.00021249,3]
[345284396,1734138639980,-500.0,0.00021249,3]
[345284397,1734138639990,-500.0,0.00021249,3]
[345284399,1734138639999,-500.0,0.00021249,3]
[345284401,1734138640008,-322.9,0.00021249,3]
[345284402,1734138640018,-594.33857464,0.00021249,3]